Cogmind - Beta 9.1 *** ADVENTURER MODE // 2019.11.26 @ 15:46:07 Player: toad3k Result: Self-destructed Performance ------------- Evolutions (1) 500 Regions Visited (2) 400 Robots Destroyed (15) 75 Value Destroyed (236) 236 Prototype IDs (2) 40 Alien Tech Used (0) 0 Bonus (0) 0 TOTAL SCORE: 1251 Bonus ------- None Cogmind --------- Core Integrity 369/400 Matter 300/300 Energy 78/125 System Corruption 0% Temperature Cool (80) Location -9/Materials Parts ------- Power (1) Light Ion Engine Propulsion (3) Hover Unit Utility (3) Heat Shielding ECM Suite Weapon (2) Heavy EM Pulse Gun Heavy EM Pulse Gun Inventory (4) Aluminum Leg EM Shotgun EMP Blaster Peak State ------------ Power Light Ion Engine Propulsion Hover Unit Hover Unit Hover Unit Utility Heat Shielding ECM Suite Weapon Heavy EM Pulse Gun Heavy EM Pulse Gun Inventory Aluminum Leg Heavy EM Pulse Gun EMP Blaster [Rating: 11] Favorites ----------- Power Light Ion Engine Engine Light Ion Engine Propulsion Hover Unit Leg Aluminum Leg Hover Unit Hover Unit Utility Heat Shielding Device Heat Shielding Weapon Heavy EM Pulse Gun Energy Gun Heavy EM Pulse Gun Ballistic Gun Light Assault Rifle Build | -11 -10 -9 ------- Run | Scr Mat Mat Slots Evolved 2 | . . 2 Power . | . . . Propulsion 1 | . . 1 Utility 1 | . . 1 Weapon . | . . . Parts Attached 15 | 5 6 4 Power 2 | 1 . 1 Engine 2 | 1 . 1 Core . | . . . Reactor . | . . . Propulsion 6 | 2 3 1 Treads . | . . . Leg 2 | 2 . . Wheel . | . . . Hover 4 | . 3 1 Flight . | . . . Utility 2 | . 1 1 Device 2 | . 1 1 Storage . | . . . Processor . | . . . Hackware . | . . . Protection . | . . . Artifact . | . . . Weapon 5 | 2 2 1 Energy Gun 4 | 1 2 1 Energy Cannon . | . . . Ballistic Gun 1 | 1 . . Ballistic Cannon . | . . . Launcher . | . . . Special Weapon . | . . . Impact Weapon . | . . . Slashing Weapon . | . . . Piercing Weapon . | . . . Special Melee Weapon . | . . . Unidentified Prototypes . | . . . Parts Lost 3 | . . 3 Power . | . . . Propulsion 2 | . . 2 Utility . | . . . Weapon 1 | . . 1 Highest Loss Streak 1 | . . 1 Average Slot Usage (%) 81 | . 80 82 Engine 12 | . 14 11 Leg 8 | . 18 . Hover 21 | . 9 31 Device 16 | . 10 21 Energy Gun 21 | . 24 18 Ballistic Gun 1 | . 2 . Naked Turns . | . . . Heaviest Build 11 | 6 10 11 Greatest Support 20 | 20 20 18 Greatest Overweight (x) . | . . . Average Overweight (x) . | . . . Largest Inventory Capacity 4 | 4 4 4 Average Capacity 4 | 4 4 4 Most Carried 4 | . 4 4 Average Carried 3 | . 3 3 Final Capacity 4 | 4 4 4 Final Carried 4 | . 4 3 Class Distribution -------------------- 85% | Mutant 14% | Scavenger-Mutant Dominant Class ---------------- Mutant | -10/Materials Mutant | -9/Materials Resources | -11 -10 -9 ----------- Run | Scr Mat Mat Matter Collected 335 | 135 113 87 Remotely . | . . . Salvage Created 459 | . 166 293 Parts 37 | . 24 13 Haulers Intercepted 1 | . . 1 Recyclers Shooed . | . . . Parts Field Recycled . | . . . Retrieved Matter . | . . . Parts Self-Destructed . | . . . Prevented . | . . . Kills | -11 -10 -9 ------- Run | Scr Mat Mat Combat Hostiles Destroyed 8 | . 4 4 Guns 7 | . 3 4 AOE 1 | . 1 . Classes Destroyed 7 | . 4 3 Worker 1 | . . 1 Tunneler 1 | . 1 . Hauler 1 | . . 1 Recycler 1 | . . 1 Watcher 3 | . 3 . Swarmer 5 | . 3 2 Grunt 3 | . 1 2 Best Kill Streak 7 | . 3 7 Combat Bots Only 3 | . 3 3 Max Kills in Single Turn 1 | . 1 1 Gunslinging . | . . . Exploded 1 | . 1 . Melee . | . . . Uniques/NPCs Destroyed . | . . . Combat | -11 -10 -9 -------- Run | Scr Mat Mat Damage Taken 304 | . 121 183 Core 48 | . 17 31 Absorbed by Shields . | . . . Core Remaining (%) 96 | 100 93 . Volleys Fired 31 | . 10 21 Largest 2 | . 2 2 Hottest 90 | . 90 90 Shots Fired 56 | . 20 36 Gun 56 | . 20 36 Cannon . | . . . Launcher . | . . . Special . | . . . Kinetic . | . . . Thermal . | . . . Explosive . | . . . Electromagnetic 56 | . 20 36 Robot Hit Streak 9 | . 6 9 Robot Miss Streak 3 | . 2 3 Penetration Max . | . . . Secondary Targets . | . . . Shots Hit Robots 34 | . 12 22 Core Hits 16 | . 8 8 Critical Hits . | . . . Critical Kills . | . . . Critical Parts Destroyed . | . . . Melee Attacks . | . . . Impact . | . . . Slashing . | . . . Piercing . | . . . Sneak Attacks . | . . . Combat Hostiles . | . . . Follow-up Attacks . | . . . Damage Inflicted 673 | . 327 346 Guns 531 | . 205 326 Cannons . | . . . Explosions 142 | . 122 20 Melee . | . . . Ramming . | . . . Kinetic . | . . . Thermal 142 | . 122 20 Explosive . | . . . Electromagnetic 531 | . 205 326 Impact . | . . . Slashing . | . . . Piercing . | . . . Highest Corruption . | . . . Average Corruption . | . . . Corruption Purged . | . . . Overload Shots . | . . . Overflow Damage . | . . . Projectiles . | . . . Explosions . | . . . Melee . | . . . Knockbacks . | . . . Impact . | . . . Kinetic . | . . . Secondary . | . . . Self-Inflicted Damage 28 | . 28 . Shots 1 | . 1 . Rammed . | . . . Targets Rammed . | . . . Kicked . | . . . Crushed . | . . . Highest Temperature 113 | . 66 113 Average Temperature 34 | . 27 38 Received Heat Transfer 17 | . 6 11 Siege Activations . | . . . Robots Corrupted . | . . . Combat Hostiles . | . . . Parts Fried . | . . . Impact Corruptions . | . . . Robots Melted . | . . . Combat Hostiles . | . . . Parts Melted . | . . . Heat Transferred 150 | . 100 50 Parts Sabotaged . | . . . Parts Stolen . | . . . Parts Stripped . | . . . Power Chain Reactions 3 | . 2 1 Missiles Intercepted . | . . . Alert | -11 -10 -9 ------- Run | Scr Mat Mat Peak Influence 234 | . 203 234 Average Influence 94 | . 91 107 Maximum Alert Level 1 | . 1 1 Low Security (%) 94 | . . . Level 1 5 | . . . Level 2 . | . . . Level 3 . | . . . Level 4 . | . . . Level 5 . | . . . High Security . | . . . Max Security . | . . . Squads Dispatched 2 | . 1 1 Investigation 1 | . 1 . Extermination . | . . . Reinforcement 1 | . . 1 Assault . | . . . Garrison . | . . . Intercept . | . . . Construction Impeded . | . . . Haulers Reinforced . | . . . Stealth | -11 -10 -9 --------- Run | Scr Mat Mat Distress Signals 4 | . 1 3 Communications Jammed . | . . . Distress Signals . | . . . Times Spotted 27 | . 10 17 Peak Tracking Total 6 | . 3 6 Tactical Retreats 5 | . 1 4 Traps | -11 -10 -9 ------- Run | Scr Mat Mat Traps Triggered 3 | . 3 . Indirectly . | . . . Trap Hack Attempts . | . . . Triggered . | . . . Disarmed . | . . . Reprogrammed . | . . . Reused . | . . . Traps Extracted . | . . . Installed . | . . . Triggered . | . . . Machines | -11 -10 -9 ---------- Run | Scr Mat Mat Machines Disabled 2 | . 1 1 Max in Single Turn 1 | . 1 1 Machines Sabotaged . | . . . Garrisons Compromised . | . . . Overloaded Fab Kills . | . . . Fab Network Shutdowns . | . . . Hacking | -11 -10 -9 --------- Run | Scr Mat Mat Machines Accessed 5 | . 3 2 Terminals 5 | . 3 2 Fabricators . | . . . Repair Stations . | . . . Recycling Units . | . . . Scanalyzers . | . . . Garrison Access . | . . . Total Hacks 12 | . 7 5 Successful 7 | . 4 3 Failed 5 | . 3 2 Catastrophic 1 | . . 1 Database Lockouts . | . . . Manual 4 | . . 4 Terminals 12 | . 7 5 Fabricators . | . . . Repair Stations . | . . . Recycling Units . | . . . Scanalyzers . | . . . Garrison Access . | . . . Terminal Hacks 7 | . 4 3 Record 2 | . 2 . Part Schematic 1 | . . 1 Prototype ID Bank 1 | . 1 . Unreport Threat 1 | . . 1 Locate Traps 1 | . . 1 Zone Layout 1 | . 1 . Fabricator Hacks . | . . . Repair Station Hacks . | . . . Recycling Unit Hacks . | . . . Scanalyzer . | . . . Garrison Access Hacks . | . . . Unauthorized Hacks . | . . . Terminals . | . . . Fabricators . | . . . Repair Stations . | . . . Recycling Units . | . . . Scanalyzers . | . . . Garrison Access . | . . . Data Cores Recovered . | . . . Used . | . . . Hacking Detections 4 | . 3 1 Full Trace Events . | . . . Feedback Events . | . . . Feedback Blocked . | . . . Robot Schematics Acquired . | . . . Robots Built . | . . . Matter . | . . . Time . | . . . Total Robot Build Rating . | . . . Part Schematics Acquired 1 | . . 1 Parts Built . | . . . Matter . | . . . Time . | . . . Total Part Build Rating . | . . . Parts Repaired . | . . . Time . | . . . Parts Recycled . | . . . Recycled Matter . | . . . Retrieved Matter . | . . . Retrieved Components . | . . . Parts Scanalyzed . | . . . Part Schematics Acquired . | . . . Parts Damaged . | . . . Bothacking | -11 -10 -9 ------------ Run | Scr Mat Mat Used RIF Installer . | . . . Robots Hacked . | . . . Non-combat . | . . . Combat . | . . . Robot Hacks Applied . | . . . Relay Couplers Released . | . . . Robots Rewired . | . . . Allies Hacked . | . . . Hacks Repelled . | . . . Allies | -11 -10 -9 -------- Run | Scr Mat Mat Total Allies . | . . . Largest Group . | . . . Highest-Rated Group . | . . . Highest-Rated Ally . | . . . Total Orders . | . . . Ally Attacks . | . . . Total Damage . | . . . Kills . | . . . Allies Corrupted . | . . . Allies Melted . | . . . Intel | -11 -10 -9 ------- Run | Scr Mat Mat Robot Analysis Total . | . . . Derelict Logs Recovered . | . . . Drone Launches . | . . . Drone Recoveries . | . . . Exploration | -11 -10 -9 ------------- Run | Scr Mat Mat Turns Passed 618 | 37 266 315 Spaces Moved 566 | 26 209 331 Core 2 | 2 . . Treads . | . . . Legs 135 | 24 111 . Wheels . | . . . Hover 429 | . 98 331 Flight . | . . . Fastest Speed 50 | 50 56 52 Average Speed 69 | 114 89 52 Slowest Speed 120 | 120 120 56 Overloaded Moves . | . . . Propulsion Burnouts . | . . . Robots Hopped . | . . . Cave-ins Triggered . | . . . Exploration Rate (%) 25 | 4 39 33 Regions Visited 2 Branch Regions . Pre-discovered Areas . | . . . Known Exits Taken . | . . . Unknown Exits Taken 2 | 1 1 . Scrap Searched . | . . . Spaces Dug . | . . . Terrain Destroyed 10 | . 6 4 Melee . | . . . Projectile . | . . . AOE 10 | . 6 4 Actions | -11 -10 -9 --------- Run | Scr Mat Mat Total 733 | 30 267 436 Wait 109 | . 31 78 Move 564 | 25 208 331 Hop . | . . . Pick Up 6 | . 5 1 Fast Attach 10 | 5 4 1 Attach 2 | . . 2 Detach 2 | . 2 . Swap 3 | . 2 1 Drop 6 | . 5 1 Fire 31 | . 10 21 Melee . | . . . Ram . | . . . Kick . | . . . Crush . | . . . Escape Stasis . | . . . Rewire . | . . . Trap . | . . . Miscellaneous . | . . . Route ------- -11/Scrapyard -10/Materials (discovered 2 exits: *Mat / [*Min]) -9/Materials (discovered 1 exit: [*Min]) History --------- Turn | Location | Event 12 | -11/Scrapyard | Discovered new exit (range 16) 38 | -11/Scrapyard | Entered Materials 182 | -10/Materials | Discovered new exit (range 15) 287 | -10/Materials | Discovered new exit (range 15) 304 | -10/Materials | Entered another Materials area 304 | -9/Materials | Evolved 2 slots: Propulsion x1, Utility x1 331 | -9/Materials | Build established: Mutant 495 | -9/Materials | Discovered new exit (range 15) 619 | -9/Materials | Self-destructed Last Messages --------------- 00495_ K-01 Serf cleans the Machine. 00502_ K-01 Serf collects debris. 00504_ W-16 Scout distress signal alerts nearby ally. 00510_ K-01 Serf collects debris. 00517_ Connecting with Terminal... >>Traps(Locate) Found 2 traps in 1 array: 2x Explosive Trap Map updated. >>Alert(Purge) Purged threat record, alert level lowered. 00518_ K-01 Serf collects debris. 00521_ K-01 Serf cleans the Electrolysis Chamber. 00532_ K-01 Serf collects debris. 00536_ K-01 Serf cleans the Electrolysis Chamber. 00539_ K-01 Serf cleans the Machine. 00562_ Hover Unit destroyed. 00568_ K-01 Serf collects debris. 00616_ Destroyed Beam Rifle. 00618_ Hover Unit destroyed. Map ----- +----------------------------------------------------+ | ?????????????????????????????????# | | ??????????????######?????????????# #### | | ??????????????# ???########## #??? | | ??????????????# """ #### #??? | | ??????????????# """ + #??? | | ??????????????# """ # #??? | | ??????????????# # #########+######??? | | ??????????????# ?# #????# #?????? | | ######????????######?# #????# #?????? | | # [ ????????#######+###??# """ #?????? | | # ????????# #??# """ #?????? | | # ?####### #??# #?????? | | # ?# # #??# #?????? | | # # # """ """ #??############## | | # # # """ """ #?########## "T" | | # + + """ """ #?# # | | # # # #?# """ # """ | | # # # #?# """ + """ | | ?######### %###########?# """ # """ | | ????????# #??????????# # | | ????????# #??????????# """ # """ | | ????????# #??????????# """ # """ | | ????????# #??????????# """ # """ | | ????????# #??????????# # | | ????????# %#################+### | | ????????# *#@ # ##+### | | ????????### ### " """"" # = | | ??????????# #?# """"""""" # T%* | | ??????????# ### s""" """ # = | | ??????????# "## o # ##/### | | ??######### "## Y g ## ## | | ??# # "#############+## ## | | ??# # ############ ## !] | | ??# " + =%=%*=!% ^^ + /] | | ??# T # ############ ## / | | ??# " # #??????######+######## | | ??# #######??????# #?# | | ??########????????????# #?# "" | | ??????????????????????# #?# "" | | ??????????????????????# """ """ #?# S | | ??????????????????????# """"""""" #?# ! | | ??????????????????????# """"" " #?## ### | | ??????????????????????# #???##?? | | ??????????????????????##?##########??????? | | ?????????????????????????????????????????? | | ?????????????????????????????????????????? | | ?????????????????????????????????????????? | | ?????????????????????????????????????????? | | ?????????????????????????????????????????? | | ?????????????????????????????????????????? | +----------------------------------------------------+ Best States ------------- Heat Dissipation 28 Energy Generation 10 Energy Capacity 125 Matter Stores 300 Matter Capacity 300 Sight Range 16 Terrain Scan Density 10 ECM Strength 1 Heat Shielding 75 Resistance: KI 20 Resistance: TH 20 Resistance: EX 20 Resistance: EM 20 Resistance: I 20 Resistance: S 20 Resistance: P 20 Evasion (%) 54 Item Schematics ----------------- Hover Unit | -9/Materials | Hacked Robot Schematics ------------------ None Fabricated ------------ Nothing Alien Tech Used ----------------- None Achievements -------------- None Challenges ------------ None Game ------ Seed ChainAerolevInitializer Manual? 0 Play Time 00:09:04 Cumulative 33.9 hours Start 2019.11.26 @ 15:35:10 End 2019.11.26 @ 15:46:07 Sessions 1 Manual Loads 0 Difficulty Adventurer Special Mode None Game No. 18 Rogue -18 Adventurer 18 Explorer 0 Win Type - Total 1 Types 0/0/1/0/0/0/0 Lore% 28 Gallery% 41 Achievement% 35 Wizard Run 0 Options --------- ASCII 0 Keyboard 1 Movement Vi Keybinds 0 Fullscreen 1 Font 18/SmallcapsGlow Map View 76x50 Tactical HUD 1 Map Filters NONE Filters NONE Steam 0 RUN: 9ebbe4ab-af59-4364-8318-87c6c7b0ec1f